bitfinex/quotes_SOLUSD_20251024
["timestamp","ask_amount","ask_price","bid_price","bid_amount"]
[1761318747132,0.68,190.97,190.91,15.72780413]
[1761318747133,10.87647521,190.96,190.91,20.96563808]
[1761318747339,5.24629822,190.95,190.85,5.2396829]
[1761318747532,5.24629822,190.93,190.88,10.87647521]
[1761318747727,5.24629822,190.92,190.88,10.87647521]
[1761318747948,5.24629822,190.92,190.86,5.24629822]
[1761318747949,16.12277343,190.92,190.86,5.24629822]
[1761318748143,16.12277343,190.92,190.85,10.87647521]
[1761318748144,10.87647521,190.9,190.85,10.87647521]
[1761318748431,10.87647521,190.9,190.86,5.24629822]
[1761318748733,0.68,190.97,190.89,28.12629822]
[1761318748954,168.59246293,191.18,190.89,22.88]
[1761318748955,16.12277343,190.94,190.89,22.88]
[1761318749148,10.87647521,190.92,190.9,5.24629822]
[1761318749344,10.87647521,190.99,190.91,5.24629822]
[1761318749635,10.87647521,190.99,190.94,5.24629822]
[1761318749854,10.87647521,190.97,190.95,5.24629822]
[1761318750355,0.68,190.97,190.94,5.24629822]
[1761318750747,0.68,190.97,190.9,0.7]
[1761318750941,0.68,190.97,190.94,5.24629822]
[1761318752154,10.87647521,190.96,190.88,22.88]
[1761318752358,5.24629822,190.95,190.89,5.24629822]
[1761318752664,16.12277343,190.91,190.85,5.23971705]
[1761318752840,0.68,190.94,190.86,5.24629822]
[1761318753035,10.87647521,190.91,190.86,5.24629822]
[1761318753241,5.24629822,190.89,190.83,5.24629822]
[1761318753437,16.12277343,190.89,190.83,5.24629822]
[1761318753642,10.87647521,190.87,190.83,28.12629822]
[1761318753856,10.87647521,190.87,190.83,22.88]
[1761318754059,0.68,190.86,190.81,5.24629822]
[1761318754640,0.68,190.86,190.8,5.24108111]
[1761318754641,0.68,190.86,190.83,28.12629822]
[1761318754942,10.87647521,190.87,190.83,28.12629822]
[1761318755150,0.68,190.86,190.83,22.88]
[1761318755546,11.55647521,190.86,190.83,22.88]
[1761318755746,10.87647521,190.83,190.75,5.24629822]
[1761318755962,10.87647521,190.8,190.78,22.88]
[1761318756139,5.24629822,190.8,190.74,5.24629822]
[1761318756339,10.87647521,190.78,190.73,5.24629822]
[1761318756538,10.87647521,190.78,190.76,22.88]
[1761318756933,10.87647521,190.82,190.74,0.7]
[1761318757138,10.87647521,190.8,190.76,5.24194248]
[1761318757551,10.87647521,190.81,190.76,5.24194248]
[1761318757753,11.55647521,190.81,190.76,10.4882407]
[1761318757964,10.87647521,190.84,190.78,5.24629822]
[1761318758151,10.87647521,190.85,190.78,28.12629822]
[1761318758463,0.68,190.93,190.87,22.88]
[1761318758655,0.68,190.97,190.91,5.24629822]
[1761318758860,0.68,190.97,190.88,22.88]
[1761318758861,5.92629822,190.97,190.88,22.88]
[1761318759365,5.92629822,190.97,190.89,5.24629822]
[1761318759366,5.24629822,190.95,190.89,5.24629822]
[1761318759561,5.24629822,190.94,190.88,33.36517916]
[1761318759871,16.12277343,190.93,190.88,22.88]
[1761318760049,10.87647521,190.93,190.88,28.12629822]
[1761318760257,10.87647521,190.91,190.88,28.12629822]
[1761318760471,10.87647521,190.85,190.65,26.92517991]
[1761318760651,5.24629822,190.76,190.7,5.24629822]
[1761318760967,10.87647521,190.83,190.71,5.24629822]
[1761318761147,10.87647521,190.77,190.73,5.24301368]
[1761318761337,11.55647521,190.81,190.75,28.12629822]
[1761318761540,5.92629822,190.81,190.76,22.88]
[1761318762364,10.87647521,190.79,190.76,22.88]
[1761318762554,0.68,190.79,190.76,22.88]
[1761318762749,10.87647521,190.82,190.73,23.59684611]
[1761318762961,10.87647521,190.77,190.73,23.59684611]
[1761318763162,10.87647521,190.77,190.76,22.88]
[1761318763463,0.68,190.78,190.76,22.88]
[1761318763464,5.24077275,190.82,190.76,22.88]
[1761318763668,10.87647521,190.8,190.76,22.88]
[1761318764042,10.87647521,190.78,190.75,5.2423124]
[1761318764241,10.87647521,190.78,190.73,28.12279054]
[1761318764466,10.87647521,190.76,190.75,22.88]
[1761318764650,10.87647521,190.76,190.72,5.24328315]
[1761318764853,0.68,190.76,190.72,10.48958137]
[1761318765169,0.68,190.76,190.72,5.24328315]
[1761318765357,10.87647521,190.78,190.72,10.48958137]
[1761318765549,11.55647521,190.78,190.73,5.24629822]
[1761318765957,0.68,190.77,190.73,5.24629822]
[1761318766156,0.68,190.77,190.72,5.24328315]
[1761318766157,0.68,190.77,190.72,10.48958137]
[1761318766358,0.68,190.77,190.73,5.24629822]
[1761318766574,0.68,190.77,190.72,10.48958137]
[1761318767567,10.87647521,190.76,190.74,22.88]
[1761318767747,10.87647521,190.76,190.71,10.48986174]
[1761318767956,10.87647521,190.74,190.71,10.48986174]
[1761318768154,10.87647521,190.74,190.71,5.24356352]
[1761318768355,0.68,190.74,190.71,10.48986174]
[1761318768754,10.87647521,190.76,190.72,5.24629822]
[1761318769072,38.36,190.77,190.72,5.24629822]
[1761318769257,43.74830351,190.78,190.73,5.24629822]
[1761318769563,38.34,190.77,190.74,28.12254345]
[1761318769957,38.34,190.77,190.75,3.42664359]
[1761318770156,38.34,190.77,190.74,22.88]
[1761318770355,43.58629822,190.77,190.71,5.24346063]
[1761318770559,38.34,190.77,190.72,3.42712121]
[1761318770772,5.24629822,190.76,190.73,3.42712121]
[1761318770976,16.80277343,190.76,190.71,5.24346063]
[1761318771268,5.24629822,190.74,190.68,5.24629822]
[1761318771449,10.87647521,190.72,190.69,8.67740193]
[1761318771649,10.87647521,190.72,190.69,5.24629822]
[1761318772163,10.87647521,190.72,190.7,8.67665575]
[1761318772357,49.19647521,190.72,190.71,3.43035753]
[1761318772969,49.19647521,190.72,190.69,5.24629822]
[1761318773155,10.87647521,190.72,190.7,3.43193556]
[1761318773354,49.85647521,190.71,190.64,5.24629822]
[1761318773565,49.85647521,190.71,190.65,31.561086]
[1761318773872,49.85647521,190.71,190.69,22.88]
[1761318774076,49.15647521,190.71,190.69,22.88]
[1761318774457,49.15647521,190.71,190.7,3.43618154]
[1761318775074,38.28,190.71,190.7,3.43618154]
[1761318776369,10.87647521,190.73,190.7,3.43618154]
[1761318776566,11.55647521,190.73,190.69,28.12389872]
[1761318776772,11.55647521,190.73,190.7,3.44278097]
[1761318776773,38.24,190.72,190.7,3.44278097]
[1761318777076,11.57647521,190.72,190.71,3.44278097]
[1761318777271,49.11647521,190.72,190.71,3.44278097]
[1761318777751,49.81647521,190.72,190.71,3.44278097]
[1761318778586,43.74830351,190.78,190.72,22.88]
[1761318778767,43.74830351,190.78,190.77,22.88]
[1761318778964,92.82477872,190.78,190.77,26.32771876]
[1761318779573,92.82477872,190.78,190.77,26.33090633]
[1761318779777,92.82477872,190.78,190.77,31.57282067]
[1761318779973,81.94830351,190.78,190.77,31.57282067]
[1761318780178,43.74830351,190.78,190.77,31.57282067]
[1761318780369,43.74830351,190.78,190.77,37.52911889]
[1761318780671,34.90109177,190.78,190.77,40.24034166]
[1761318780875,6.7924509,190.78,190.77,40.24034166]
[1761318781077,1e-08,190.78,190.77,40.24034166]
[1761318782261,1e-08,190.78,190.77,32.28282067]
[1761318782475,1e-08,190.78,190.77,40.24034166]
[1761318783071,1e-08,190.78,190.77,31.57282067]
[1761318783281,1e-08,190.78,190.77,8.69282067]
[1761318783478,1e-08,190.78,190.77,17.36034166]
[1761318783785,1e-08,190.78,190.77,16.65034166]
[1761318784991,1e-08,190.78,190.77,39.53034166]
[1761318785199,1e-08,190.78,190.77,9.40282067]
[1761318785394,1e-08,190.78,190.77,17.36034166]
[1761318786282,10.87647521,190.88,190.8,22.88]
[1761318786461,0.7,190.94,190.87,30.83752099]
[1761318786661,0.7,190.98,190.93,7.95752099]
[1761318786861,0.7,190.98,190.94,3.44934823]
[1761318787087,0.7,190.98,190.93,7.95752099]
[1761318787288,0.7,190.98,190.89,22.88]
[1761318787494,0.7,190.98,190.9,3.45095692]
[1761318787695,0.7,190.98,190.89,22.88]
[1761318787696,5.23642456,190.97,190.91,3.45095692]
[1761318787897,7.95752099,190.95,190.85,22.88]
[1761318788190,38.1,190.94,190.88,7.95752099]
[1761318788393,46.05752099,190.94,190.82,34.78712142]
[1761318788694,10.87647521,190.92,190.89,7.95752099]
[1761318788994,10.87647521,190.92,190.88,7.95752099]
[1761318789194,0.7,190.91,190.88,7.95752099]
[1761318789378,10.87647521,190.9,190.87,7.95752099]
[1761318789889,11.57647521,190.89,190.87,7.95752099]
[1761318790095,10.87647521,190.89,190.87,7.95752099]
[1761318790672,0.7,190.91,190.88,7.95752099]
[1761318790882,0.7,190.91,190.89,7.95752099]
[1761318791289,0.7,190.91,190.88,7.95752099]
[1761318791494,10.87647521,190.9,190.86,7.95752099]
[1761318791694,10.87647521,190.9,190.87,3.45799755]
[1761318791898,0.7,190.89,190.88,3.46007211]
[1761318792075,11.57647521,190.89,190.84,7.95752099]
[1761318792276,10.87647521,190.87,190.85,3.46276031]
[1761318792570,10.87647521,190.87,190.79,18.12268869]
[1761318792571,10.87647521,190.87,190.79,7.95752099]
[1761318792887,7.95752099,190.84,190.8,3.46678425]
[1761318793070,7.95752099,190.84,190.77,5.24189511]
[1761318793071,10.87647521,190.82,190.77,5.24186993]
[1761318793270,10.87647521,190.82,190.78,11.42525341]
[1761318793493,0.7,190.81,190.79,3.46773242]
[1761318793674,0.7,190.81,190.78,7.95752099]
[1761318793882,10.87647521,190.82,190.79,11.42512999]
[1761318794085,10.87647521,190.82,190.79,7.95752099]
[1761318794598,11.57647521,190.82,190.8,7.95752099]
[1761318794767,11.57647521,190.82,190.78,5.24159673]
[1761318794972,10.87647521,190.82,190.8,7.95752099]
[1761318795169,10.87647521,190.8,190.75,0.71]
[1761318795498,38.02,190.81,190.76,3.47366829]
[1761318795794,38.02,190.81,190.77,3.47366829]
[1761318795980,10.87647521,190.83,190.78,16.67282886]
[1761318796180,33.1,190.82,190.79,3.47366829]
[1761318796381,33.1,190.81,190.79,22.88]
[1761318796584,33.8,190.81,190.79,22.88]
[1761318796774,33.8,190.81,190.72,4.30983156]
[1761318796775,19.5339962,190.8,190.72,4.30983156]
[1761318796979,10.87647521,190.78,190.73,3.47816882]
[1761318797283,7.95752099,190.77,190.74,3.47816882]
[1761318797478,7.95752099,190.77,190.72,5.24327833]
[1761318797479,38.68,190.76,190.72,5.24327833]
[1761318797674,38.68,190.76,190.73,3.48036406]
[1761318797987,11.57647521,190.75,190.71,5.24355504]
[1761318798171,11.57647521,190.75,190.73,22.88]
[1761318798372,10.87647521,190.75,190.73,22.88]
[1761318798617,37.98,190.74,190.73,22.88]
[1761318798792,37.98,190.74,190.73,26.36144512]
[1761318799106,37.98,190.74,190.73,3.48144512]
[1761318799995,37.96,190.76,190.73,5.24287021]
[1761318800178,37.96,190.76,190.73,13.2003912]
[1761318800381,37.96,190.76,190.73,5.24287021]
[1761318800695,37.96,190.76,190.72,7.95752099]
[1761318801202,37.96,190.76,190.71,30.83752099]
[1761318801403,19.5439962,190.75,190.71,28.12356352]
[1761318801586,37.94,190.74,190.72,13.20068172]
[1761318802311,37.94,190.74,190.73,7.95752099]
[1761318802480,37.94,190.74,190.73,8.62752099]
[1761318802681,37.92,190.77,190.73,8.62752099]
[1761318803107,37.92,190.77,190.74,0.67]
[1761318803406,37.92,190.77,190.72,18.3513822]
[1761318803584,37.92,190.77,190.73,13.20037476]
[1761318803778,38.63,190.77,190.73,13.20037476]
[1761318804005,38.63,190.77,190.73,5.24285377]
[1761318804187,38.63,190.77,190.73,13.20037476]
[1761318804805,11.58647521,190.76,190.7,7.95752099]
[1761318804989,37.88,190.75,190.71,7.95752099]
[1761318805381,37.88,190.75,190.73,7.95752099]
[1761318805707,37.88,190.75,190.72,13.20076289]
[1761318805894,5.09128134,190.86,190.74,7.95752099]
[1761318806132,20.18,190.85,190.8,7.95752099]
[1761318806290,28.13752099,190.85,190.79,7.95752099]
[1761318806601,20.18,190.85,190.8,7.95752099]
[1761318807007,10.87647521,190.84,190.79,22.88]
[1761318807312,10.87647521,190.84,190.81,7.95752099]
[1761318807800,10.87647521,190.84,190.81,13.19829318]
[1761318808313,10.87647521,190.84,190.72,26.21644295]
[1761318808314,10.87647521,190.84,190.75,0.67]
[1761318808483,10.87647521,190.84,190.8,7.95752099]
[1761318809193,11.58647521,190.84,190.8,7.95752099]
[1761318809401,10.87647521,190.82,190.76,22.88]
[1761318809582,37.86,190.81,190.78,7.95752099]
[1761318809921,37.86,190.81,190.79,5.24136485]
[1761318810093,37.86,190.81,190.8,30.83752099]
[1761318810717,0.71,190.86,190.8,31.50752099]
[1761318810928,48.71647521,190.85,190.82,7.95752099]
[1761318811418,5.23926381,190.87,190.83,7.95752099]
[1761318811419,48.69647521,190.84,190.83,7.95752099]
[1761318812028,48.69647521,190.84,190.82,22.88]
[1761318812324,10.87647521,190.84,190.83,7.95752099]
[1761318812619,48.69647521,190.84,190.83,8.62752099]
[1761318812799,48.69647521,190.84,190.83,7.95752099]
[1761318812990,48.69647521,190.84,190.82,22.88]
[1761318812991,49.40647521,190.84,190.82,22.88]
[1761318813190,11.58647521,190.83,190.76,5.24218656]
[1761318813515,11.58647521,190.83,190.75,0.67]
[1761318813516,10.87647521,190.83,190.8,7.95752099]
[1761318814116,0.71,190.82,190.75,0.67]
[1761318814307,0.71,190.82,190.66,17.50701743]
[1761318814308,10.87647521,190.81,190.73,0.67]
[1761318814626,48.71647521,190.8,190.79,22.88]
[1761318814802,48.71647521,190.8,190.76,7.95752099]
[1761318815005,48.71647521,190.8,190.73,0.67]
[1761318815199,48.71647521,190.8,190.79,22.88]
[1761318815625,10.87647521,190.8,190.79,7.95752099]
[1761318815828,48.71647521,190.8,190.79,7.95752099]
[1761318816826,49.42647521,190.8,190.78,22.88]
[1761318817508,11.58647521,190.79,190.78,22.88]
[1761318817703,19.5439962,190.79,190.78,22.88]
[1761318818315,19.5439962,190.79,190.67,0.67]
[1761318818634,43.08122141,190.8,190.72,5.24328859]
[1761318818635,10.87647521,190.76,190.72,5.24328859]
[1761318818940,10.87647521,190.76,190.67,0.67]
[1761318818941,45.77752099,190.75,190.66,0.1]
[1761318819103,18.8339962,190.74,190.69,7.95752099]
[1761318819423,10.87647521,190.72,190.69,7.95752099]
[1761318819625,37.82,190.71,190.69,7.95752099]
[1761318820025,37.82,190.7,190.69,22.88]
[1761318820538,37.82,190.7,190.68,7.95752099]
[1761318820728,37.82,190.7,190.67,7.95752099]
[1761318821036,37.82,190.7,190.69,22.88]
[1761318821524,37.82,190.7,190.69,30.83752099]
[1761318822138,37.82,190.7,190.69,22.88]
[1761318823012,49.40647521,190.7,190.69,22.88]
[1761318823334,57.3639962,190.7,190.69,22.88]
[1761318823506,49.40647521,190.7,190.69,22.88]
[1761318823704,57.3639962,190.7,190.69,22.88]
[1761318823906,49.40647521,190.7,190.69,22.88]
[1761318824433,48.69647521,190.7,190.69,22.88]
[1761318824805,37.78,190.7,190.69,28.12411348]
[1761318825017,37.78,190.7,190.69,36.08163447]
[1761318825443,37.78,190.7,190.69,28.12411348]
[1761318825648,38.49,190.7,190.66,8.05752099]
[1761318825851,37.78,190.7,190.69,22.88]
[1761318826062,37.78,190.7,190.69,30.83752099]
[1761318826339,37.78,190.7,190.69,22.88]
[1761318826538,38.49,190.7,190.69,22.88]
[1761318826929,37.78,190.7,190.69,22.88]
[1761318827127,10.87647521,190.69,190.66,0.1]
[1761318827327,18.8339962,190.67,190.66,0.1]
[1761318827629,57.3239962,190.67,190.66,0.1]
[1761318828350,49.36647521,190.67,190.66,0.1]
[1761318828532,57.3239962,190.67,190.66,0.1]
[1761318829139,48.65647521,190.67,190.66,0.1]
[1761318829346,0.71,190.72,190.66,0.1]
[1761318829531,56.6139962,190.71,190.66,0.1]
[1761318829845,18.8339962,190.69,190.66,0.1]
[1761318830036,1.99999999,190.78,190.66,0.1]
[1761318830037,7.95752099,190.79,190.71,22.88]
[1761318830236,19.5,190.78,190.67,23.94407578]
[1761318830445,7.95752099,190.74,190.69,28.12411348]
[1761318830753,37.36,190.73,190.69,36.08163447]
[1761318830956,38.02,190.72,190.71,22.88]
[1761318831425,38.02,190.72,190.7,22.88]
[1761318831627,38.02,190.72,190.71,5.24356352]
[1761318832335,38.02,190.72,190.71,28.12356352]
[1761318832545,38.02,190.72,190.71,36.08108451]
[1761318832952,38.02,190.72,190.71,28.12356352]
[1761318833750,38.02,190.72,190.71,22.88]
[1761318834552,10.87647521,190.75,190.71,31.53752099]
[1761318834848,37.98,190.74,190.71,36.78108451]
[1761318835055,37.98,190.74,190.71,28.12356352]
[1761318835565,11.58647521,190.73,190.68,7.95752099]
[1761318836052,16.82954432,190.73,190.68,5.24426819]
[1761318836251,16.82954432,190.73,190.68,13.20178918]
[1761318836556,11.58647521,190.73,190.68,13.20178918]
[1761318837057,11.58647521,190.73,190.68,5.24426819]
[1761318837248,0.72,190.72,190.67,36.08212044]
[1761318837451,37.98,190.71,190.67,36.08212044]
[1761318837646,37.98,190.71,190.67,22.88]
[1761318837837,37.98,190.71,190.67,36.78217008]
[1761318838043,37.98,190.71,190.67,36.08217008]
[1761318838349,37.98,190.71,190.67,28.12464909]
[1761318839843,10.87647521,190.7,190.66,0.1]
[1761318840155,10.87647521,190.7,190.66,13.30230049]
[1761318840351,16.11950878,190.73,190.67,8.65752099]
[1761318840550,10.87647521,190.71,190.66,5.3447795]
[1761318840759,37.94,190.7,190.66,5.3447795]
[1761318840946,11.59647521,190.71,190.66,5.3447795]
[1761318841158,37.94,190.7,190.66,5.3447795]
[1761318841455,10.87647521,190.71,190.67,0.7]
[1761318841637,37.94,190.69,190.66,10.59090951]
[1761318841839,37.94,190.69,190.66,11.29090951]
[1761318842961,37.94,190.69,190.66,0.1]
[1761318843161,38.66,190.69,190.66,0.1]
[1761318843542,37.94,190.69,190.66,5.34613001]
[1761318844436,37.94,190.69,190.66,10.59103942]
[1761318845441,56.29439788,190.69,190.66,0.1]
[1761318845764,16.12260522,190.67,190.66,0.1]
[1761318846063,10.87647521,190.67,190.66,0.1]
[1761318846273,16.84260522,190.67,190.66,0.1]
[1761318847472,16.84113876,190.67,190.66,0.1]
[1761318847861,22.08726877,190.67,190.66,0.1]
[1761318848247,16.84113876,190.67,190.66,0.1]
[1761318848567,22.08726877,190.67,190.66,0.1]
[1761318848737,16.84113876,190.67,190.66,0.1]
[1761318849763,10.87647521,190.67,190.66,0.1]
[1761318849947,48.71647521,190.67,190.66,0.1]
[1761318850650,53.96113876,190.67,190.66,0.1]
[1761318850850,54.68113876,190.67,190.66,0.1]
[1761318851193,59.92726877,190.67,190.66,0.1]
[1761318851974,54.68113876,190.67,190.66,0.1]
[1761318852160,59.92726877,190.67,190.66,0.1]
[1761318852669,54.68113876,190.67,190.66,0.1]
[1761318852858,59.92726877,190.67,190.66,0.1]
[1761318853569,59.20726877,190.67,190.66,0.1]
[1761318853747,59.92726877,190.67,190.66,0.1]
[1761318854253,54.68113876,190.67,190.66,0.1]
[1761318854561,59.92726877,190.67,190.66,0.1]
[1761318854758,16.12113876,190.67,190.66,0.1]
[1761318854957,48.67647521,190.67,190.66,0.1]
[1761318855169,53.92113876,190.67,190.66,0.1]
[1761318855946,59.88726877,190.67,190.66,0.1]
[1761318856157,48.67647521,190.67,190.66,0.8]
[1761318856359,37.78,190.67,190.66,0.8]
[1761318856576,37.78,190.67,190.66,0.1]
[1761318856869,37.78,190.67,190.66,0.8]
[1761318857455,37.78,190.67,190.66,0.1]
[1761318857850,10.87647521,190.7,190.66,0.1]
[1761318858050,48.67647521,190.69,190.66,0.1]
[1761318858458,11.21012872,190.7,190.66,0.1]
[1761318858657,48.67647521,190.69,190.66,0.1]
[1761318858858,10.87647521,190.69,190.66,0.1]
[1761318859074,10.87647521,190.69,190.66,0.8]
[1761318859075,37.78,190.68,190.66,0.8]
[1761318859771,16.12047392,190.7,190.66,0.1]
[1761318859969,48.65647521,190.69,190.66,0.1]
[1761318860162,37.76,190.68,190.67,0.68]
[1761318861067,37.76,190.68,190.66,0.1]
[1761318861273,40.70946045,190.68,190.66,0.1]
[1761318861463,40.04946045,190.68,190.66,0.1]
[1761318861868,40.70946045,190.68,190.66,0.1]
[1761318862159,45.95391345,190.68,190.66,0.1]
[1761318863192,10.87647521,190.67,190.66,0.1]
[1761318865378,13.82593566,190.67,190.66,0.1]
[1761318865583,2.28946045,190.62,190.57,0.68]
[1761318865885,40.02946045,190.61,190.55,2.28946045]
[1761318866198,37.74,190.6,190.55,2.96946045]
[1761318866355,37.74,190.6,190.56,0.68]
[1761318866784,40.02946045,190.6,190.56,0.68]
[1761318867078,45.27605876,190.6,190.56,0.68]
[1761318867285,45.27605876,190.6,190.56,23.56]
[1761318867667,40.02946045,190.6,190.57,0.68]
[1761318868060,45.2761455,190.6,190.57,0.68]
[1761318868579,45.2761455,190.6,190.53,0.1]
[1761318868580,10.87647521,190.57,190.53,0.1]
[1761318868884,2.28946045,190.54,190.53,0.1]
[1761318869054,40.00946045,190.54,190.53,0.1]
[1761318869258,45.91770228,190.54,190.53,0.1]
[1761318869660,56.79417749,190.54,190.53,0.1]
[1761318869870,56.13417749,190.54,190.53,0.1]
[1761318870779,59.10159049,190.54,190.53,0.1]
[1761318871473,59.76159049,190.54,190.53,0.1]
[1761318873087,48.88511528,190.54,190.53,0.1]
[1761318873467,59.76159049,190.54,190.53,0.1]
[1761318876187,37.66,190.54,190.53,0.78]
[1761318876761,37.66,190.54,190.53,0.1]
[1761318877166,48.16511528,190.54,190.53,0.1]
[1761318877396,53.78471704,190.54,190.53,0.1]
[1761318877609,59.04159049,190.54,190.53,0.1]
[1761318878102,53.78471704,190.54,190.53,0.1]
[1761318878298,5.24800968,190.55,190.53,0.1]
[1761318878469,37.66,190.54,190.53,0.78]
[1761318879365,37.64,190.54,190.53,6.03687345]
[1761318879565,37.64,190.54,190.53,0.78]
[1761318880401,10.87647521,190.58,190.53,6.03687345]
[1761318880612,126.18,190.63,190.57,5.25687345]
[1761318880613,124.6791598,190.63,190.57,5.25687345]
[1761318880762,37.64,190.6,190.56,5.25687345]
[1761318880966,37.64,190.6,190.57,0.68]
[1761318881572,42.89687345,190.6,190.54,28.13687345]
[1761318881775,5.25687345,190.57,190.53,0.1]
[1761318881967,5.25687345,190.55,190.53,0.1]
[1761318882276,37.66,190.54,190.53,0.1]
[1761318882675,59.04159049,190.54,190.53,0.1]
[1761318883077,59.70159049,190.54,190.53,0.1]
[1761318885008,59.04159049,190.54,190.53,0.1]
[1761318885381,16.12471704,190.54,190.53,0.1]
[1761318885584,59.04159049,190.54,190.53,0.1]
[1761318885889,53.79334866,190.54,190.53,0.1]
[1761318887204,16.12361551,190.58,190.53,0.78]
[1761318887495,16.12361551,190.58,190.53,0.1]
[1761318887496,5.25687345,190.54,190.53,0.1]
[1761318887670,42.87687345,190.54,190.53,0.1]
[1761318888467,37.62,190.54,190.53,0.1]
[1761318889078,37.62,190.54,190.53,0.78]
[1761318889296,37.64,190.54,190.53,0.78]
[1761318890077,16.1235611,190.59,190.53,11.28519903]
[1761318890277,37.64,190.58,190.53,11.28519903]
[1761318890481,37.64,190.58,190.54,0.69]
[1761318890697,37.64,190.58,190.54,5.94687345]
[1761318891216,31.48,190.61,190.54,5.94687345]
[1761318891217,37.62,190.57,190.56,5.25687345]
[1761318891381,37.64,190.57,190.56,5.25687345]
[1761318891584,37.64,190.57,190.56,5.94687345]
[1761318892809,37.64,190.57,190.56,25.86124716]
[1761318893107,37.64,190.57,190.56,31.10893817]
[1761318893401,37.64,190.57,190.56,0.69]
[1761318893586,37.64,190.57,190.56,8.22893817]
[1761318895992,37.64,190.57,190.56,5.93769101]
[1761318896978,37.64,190.57,190.54,5.94798585]
[1761318897179,37.64,190.57,190.54,5.24798585]
[1761318897400,37.64,190.57,190.54,28.82798585]
[1761318897599,37.64,190.57,190.55,0.7]
[1761318897900,37.64,190.57,190.53,5.348497]
[1761318898084,45.84868288,190.57,190.53,0.1]
[1761318898283,10.87647521,190.54,190.53,0.1]
[1761318898495,50.72772237,190.54,190.53,0.1]
[1761318898894,56.6459642,190.54,190.53,0.1]
[1761318899788,54.35471704,190.54,190.53,0.1]
[1761318900024,56.6459642,190.54,190.53,0.1]
[1761318900503,55.9759642,190.54,190.53,0.1]
[1761318900686,56.6459642,190.54,190.53,0.1]
[1761318901683,33.75647521,190.52,190.51,0.1]
[1761318901879,36.04772237,190.52,190.51,0.1]
[1761318902100,36.71772237,190.52,190.51,0.1]
[1761318902705,38.01287434,190.52,190.51,0.1]
[1761318902898,43.26166711,190.52,190.51,0.1]
[1761318903506,10.87647521,190.52,190.51,0.1]
[1761318903809,37.56,190.52,190.51,0.8]
[1761318904007,37.56,190.52,190.51,0.1]
[1761318904313,37.56,190.52,190.51,0.8]
[1761318905697,57.27166711,190.52,190.51,0.1]
[1761318905899,57.94166711,190.52,190.51,0.1]
[1761318906414,57.27166711,190.52,190.51,0.1]
[1761318906613,57.94166711,190.52,190.51,0.1]
[1761318907500,54.35526798,190.52,190.51,0.1]
[1761318907698,57.94166711,190.52,190.51,0.1]
[1761318908805,62.34566892,190.52,190.51,0.1]
[1761318909011,62.34566892,190.52,190.48,0.1]
[1761318909012,33.75647521,190.49,190.48,0.1]
[1761318909217,79.26687615,190.49,190.48,0.1]
[1761318909394,79.93687615,190.49,190.48,0.1]
[1761318909599,85.18649555,190.49,190.48,0.1]
[1761318909917,74.31002034,190.49,190.48,0.1]
[1761318910097,85.18649555,190.49,190.48,0.1]
[1761318911027,47.66649555,190.49,190.48,0.1]
[1761318911191,61.61649555,190.49,190.48,0.1]
[1761318911731,24.78649555,190.49,190.48,0.1]
[1761318911894,62.28649555,190.49,190.48,0.1]
[1761318912221,54.29609461,190.49,190.48,0.1]
[1761318912512,62.28649555,190.49,190.48,0.1]
[1761318913300,51.41002034,190.49,190.48,0.1]
[1761318913516,62.28649555,190.49,190.48,0.1]
[1761318913813,24.11649555,190.49,190.48,0.1]
[1761318914017,61.59649555,190.49,190.48,0.1]
[1761318914791,16.12609461,190.49,190.48,0.1]
[1761318915034,61.59649555,190.49,190.48,0.1]
[1761318915223,62.26649555,190.49,190.48,0.1]
[1761318916098,61.59649555,190.49,190.48,0.1]
[1761318918112,62.26649555,190.49,190.48,0.1]
[1761318920826,62.25649555,190.49,190.48,0.1]